[Event "III Duchamp Open 2019"]
[Site "Rio de Janeiro"]
[Date "2019.12.07"]
[Round "1.9"]
[White "Galego, Luis"]
[Black "Souza dos Santos, Matheus Garcett"]
[Result "1-0"]
[ECO "B50"]
[WhiteElo "2483"]
[BlackElo "1931"]
[Annotator "ChessBase"]
[PlyCount "63"]
[EventDate "2019.12.07"]
[EventType "swiss"]
[EventCountry "BRA"]
[SourceTitle "playchess.com"]
[Source "ChessBase"]
[SourceQuality "1"]
[TimeControl "40/5400+30:1800+30"]

1. e4 {[%emt 0:00:00]} c5 {[%emt 0:01:53]} 2. Nf3 {[%emt 0:00:00]} d6 {[%emt 0:00:44]} 3. c3 {[%emt 0:01:01]} Nf6 {[%emt 0:01:43]} 4. Bb5+ {[%emt 0:00:29]} Bd7 {[%emt 0:00:35]} 5. Bxd7+ {[%emt 0:00:06]} Nbxd7 {[%emt 0:00:25]} 6. Qe2 {[%emt 0:00:51]} Qc7 {[%emt 0:02:25]} 7. O-O {[%emt 0:00:55]} g6 {[%emt 0:01:55]} 8. d4 {[%emt 0:04:20]} e5 {[%emt 0:06:33]} 9. dxe5 {[%emt 0:02:48]} dxe5 {[%emt 0:01:16]} 10. Bg5 {[%emt 0:04:06]} Bg7 {[%emt 0:00:47]} 11. Bxf6 {[%emt 0:06:00]} Nxf6 {[%emt 0:04:48]} 12. Qb5+ {[%emt 0:02:49]} Qd7 {[%emt 0:03:28]} 13. Qxd7+ {[%emt 0:10:14]} Nxd7 {[%emt 0:00:19]} 14. Rd1 {[%emt 0:00:16]} Rd8 {[%emt 0:04:06]} 15. Na3 {[%emt 0:00:32]} O-O {[%emt 0:11:10]} 16. Rd5 {[%emt 0:09:55]} Nf6 {[%emt 0:34:44]} 17. Rxe5 {[%emt 0:01:57]} Rd7 {[%emt 0:00:37]} 18. Rxc5 {[%emt 0:02:51]} Nxe4 {[%emt 0:00:17]} 19. Rb5 {[%emt 0:01:01]} Rfd8 {[%emt 0:01:11]} 20. Re1 {[%emt 0:00:40]} f5 {[%emt 0:01:06]} 21. Nc2 {[%emt 0:01:13]} b6 {[%emt 0:11:24]} 22. Ncd4 {[%emt 0:02:27]} Rd6 {[%emt 0:00:55]} 23. Rb4 {[%emt 0:02:21]} a6 {[%emt 0:02:23]} 24. a4 {[%emt 0:01:47]} Kf7 {[%emt 0:01:12]} 25. Rc4 {[%emt 0:00:52]} Nc5 {[%emt 0:00:59]} 26. a5 {[%emt 0:03:08]} Bxd4 {[%emt 0:02:29]} 27. Nxd4 {[%emt 0:00:11]} Nd3 {[%emt 0:03:14]} 28. Re2 {[%emt 0:09:50]} bxa5 {[%emt 0:00:44]} 29. g3 {[%emt 0:00:27]} Rb8 {[%emt 0:00:22]} 30. Rc7+ {[%emt 0:00:44]} Kf6 {[%emt 0:00:35]} 31. f4 {[%emt 0:02:45]} g5 {[%emt 0:00:39]} 32. Rxh7 {[%emt 0:01:29]} 1-0

[Event "III Duchamp Open 2019"]
[Site "Rio de Janeiro"]
[Date "2019.12.07"]
[Round "1.15"]
[White "Von Buelow, Georg"]
[Black "Chaves, Joara"]
[Result "1-0"]
[ECO "E92"]
[WhiteElo "2363"]
[BlackElo "1889"]
[Annotator "RC"]
[PlyCount "97"]
[EventDate "2019.12.07"]
[EventType "swiss"]
[EventCountry "BRA"]
[SourceTitle "playchess.com"]
[Source "ChessBase"]
[SourceQuality "1"]
[TimeControl "40/5400+30:1800+30"]

1. Nf3 {[%emt 0:00:00]} Nf6 {[%emt 0:00:47]} 2. c4 {[%emt 0:00:00]} g6 {[%emt 0:00:56]} 3. Nc3 {[%emt 0:00:09]} Bg7 {[%emt 0:01:12]} 4. e4 {[%emt 0:00:14]} d6 {[%emt 0:00:45]} 5. d4 {[%emt 0:00:12]} O-O {[%emt 0:01:45]} 6. Be2 {[%emt 0:00:12]} e5 {[%emt 0:01:11]} 7. Be3 {[%emt 0:00:39]} Ng4 {[%emt 0:02:11]} 8. Bg5 {[%emt 0:00:40]} f6 {[%emt 0:00:07]} 9. Bc1 {[%emt 0:00:52]} Nc6 {[%emt 0:09:14]} 10. d5 {[%emt 0:00:44]} Ne7 {[%emt 0:01:38]} 11. h3 {[%emt 0:00:24]} Nh6 {[%emt 0:00:28]} 12. h4 {[%emt 0:00:24]} c6 {[%emt 0:29:13]} 13. h5 {[%emt 0:05:25]} g5 {[%emt 0:03:26]} 14. Nh2 {[%emt 0:02:51]} cxd5 {[%emt 0:02:48]} 15. cxd5 {[%emt 0:00:48]} Bd7 {[%emt 0:00:32]} 16. g4 {[%emt 0:01:37]} a6 {[%emt 0:12:13]} 17. a4 {[%emt 0:05:12]} Nc8 {[%emt 0:11:44]} 18. Nf1 {[%emt 0:01:27]} Re8 {[%emt 0:05:07]} 19. Ne3 {[%emt 0:00:52]} b6 {[%emt 0:05:01]} 20. Bd2 {[%emt 0:02:27]} Qc7 {[%emt 0:00:20]} 21. O-O {[%emt 0:01:50]} Bf8 {[%emt 0:01:11]} 22. Qb3 {[%emt 0:02:37]} Qb7 {[%emt 0:01:06]} 23. Rfc1 {[%emt 0:02:26]} Be7 24. Na2 {[%emt 0:05:54]} b5 {[%emt 0:05:15]} 25. axb5 {[%emt 0:11:58]} axb5 {[%emt 0:00:39]} 26. Nc3 {[%emt 0:02:45]} Rb8 {[%emt 0:00:42]} 27. f3 {[%emt 0:09:00]} Bd8 {[%emt 0:00:27]} 28. Kg2 {[%emt 0:00:58]} Re7 {[%emt 0:01:12]} 29. Nc2 {[%emt 0:05:34]} Na7 {[%emt 0:00:19]} 30. Nb4 {[%emt 0:01:15]} Bb6 {[%emt 0:00:17]} 31. Nc6 {[%emt 0:01:09]} Rf7 {[%emt 0:01:26]} 32. Nxb8 {[%emt 0:01:55]} Qxb8 {[%emt 0:00:02]} 33. Nxb5 {[%emt 0:03:50]} Nxb5 {[%emt 0:00:20]} 34. Bxb5 {[%emt 0:00:12]} Bd4 {[%emt 0:01:49]} 35. Ra5 {[%emt 0:02:17]} Nxg4 {[%emt 0:00:54]} 36. fxg4 {[%emt 0:00:53]} Bxg4 {[%emt 0:00:06]} 37. h6 {[%emt 0:05:26]} Rf8 {[%emt 0:01:06]} 38. Qc2 {[%emt 0:02:01]} Rc8 {[%emt 0:00:33]} 39. Bc6 {[%emt 0:00:39]} Qxb2 {[%emt 0:00:38]} 40. Qxb2 {[%emt 0:00:38]} Bxb2 {[%emt 0:00:02]} 41. Rb1 {[%emt 0:30:28]} Bd4 {[%emt 0:30:29]} 42. Rb7 {[%emt 0:00:39]} Bh5 {[%emt 0:00:48]} 43. Rg7+ {[%emt 0:01:43]} Kh8 {[%emt 0:00:12]} 44. Bd7 {[%emt 0:01:45]} Rb8 {[%emt 0:01:00]} 45. Bf5 {[%emt 0:01:18]} Bc5 {[%emt 0:00:20]} 46. Rxh7+ {[%emt 0:00:59]} Kg8 {[%emt 0:00:06]} 47. Rg7+ {[%emt 0:00:10]} Kh8 {[%emt 0:00:16]} 48. Rb7 {[%emt 0:04:19]} Rd8 {[%emt 0:00:16]} 49. Rab5 {[%emt 0:00:12]} 1-0

[Event "III Duchamp Open 2019"]
[Site "Rio de Janeiro"]
[Date "2019.12.08"]
[Round "2.1"]
[White "Librelato, Kathie Goulart"]
[Black "Martinez Alcantara, Jose Eduardo"]
[Result "0-1"]
[ECO "B66"]
[WhiteElo "2217"]
[BlackElo "2592"]
[Annotator "ChessBase"]
[PlyCount "68"]
[EventDate "2019.12.07"]
[EventType "swiss"]
[EventCountry "BRA"]
[SourceTitle "playchess.com"]
[Source "ChessBase"]
[SourceQuality "1"]
[TimeControl "40/5400+30:1800+30"]

1. e4 {[%emt 0:00:00]} c5 {[%emt 0:00:00]} 2. Nf3 {[%emt 0:00:00]} d6 {[%emt 0:00:22]} 3. d4 {[%emt 0:00:00]} cxd4 {[%emt 0:00:05]} 4. Nxd4 {[%emt 0:00:02]} Nf6 {[%emt 0:00:34]} 5. Nc3 {[%emt 0:00:11]} Nc6 {[%emt 0:02:53]} 6. Bg5 {[%emt 0:00:23]} e6 {[%emt 0:00:05]} 7. Qd2 {[%emt 0:00:35]} a6 {[%emt 0:00:59]} 8. O-O-O {[%emt 0:00:33]} Qb6 {[%emt 0:04:40]} 9. Nb3 {[%emt 0:18:40]} Be7 {[%emt 0:06:53]} 10. f3 {[%emt 0:02:54]} Qc7 {[%emt 0:03:00]} 11. Bf4 {[%emt 0:17:26]} Ne5 {[%emt 0:00:46]} 12. Be2 {[%emt 0:00:41]} Rb8 {[%emt 0:04:29]} 13. g4 {[%emt 0:07:47]} b5 {[%emt 0:00:17]} 14. g5 {[%emt 0:08:57]} Nfd7 {[%emt 0:00:20]} 15. h4 {[%emt 0:01:36]} b4 {[%emt 0:05:54]} 16. Nb1 {[%emt 0:00:43]} a5 {[%emt 0:01:12]} 17. h5 {[%emt 0:07:53]} a4 {[%emt 0:14:07]} 18. Nd4 {[%emt 0:00:42]} Nc4 {[%emt 0:00:55]} 19. Bxc4 {[%emt 0:04:30]} Qxc4 {[%emt 0:00:04]} 20. b3 {[%emt 0:02:44]} axb3 {[%emt 0:00:06]} 21. axb3 {[%emt 0:00:06]} Qc7 {[%emt 0:01:11]} 22. g6 {[%emt 0:10:05]} Nc5 {[%emt 0:01:40]} 23. Qe3 {[%emt 0:13:05]} e5 {[%emt 0:02:20]} 24. h6 {[%emt 0:00:35]} fxg6 {[%emt 0:01:12]} 25. hxg7 {[%emt 0:00:44]} Rg8 {[%emt 0:00:06]} 26. Rxh7 {[%emt 0:00:29]} exf4 {[%emt 0:01:14]} 27. Qxf4 {[%emt 0:00:24]} Ne6 {[%emt 0:01:47]} 28. Qg3 {[%emt 0:01:24]} Bg5+ {[%emt 0:00:27]} 29. Kb2 {[%emt 0:00:29]} Nxd4 {[%emt 0:00:09]} 30. Rxd4 {[%emt 0:00:25]} Bf6 {[%emt 0:00:09]} 31. Qxg6+ {[%emt 0:00:46]} Qf7 {[%emt 0:00:11]} 32. Qg1 {[%emt 0:00:36]} Qa7 {[%emt 0:01:01]} 33. e5 {[%emt 0:00:33]} Qxd4+ {[%emt 0:00:17]} 34. Qxd4 {[%emt 0:00:07]} Bxe5 {[%emt 0:00:03]} 0-1

[Event "III Duchamp Open 2019"]
[Site "Rio de Janeiro"]
[Date "2019.12.08"]
[Round "2.2"]
[White "Supi, Luis Paulo"]
[Black "Alboredo, Julia"]
[Result "1-0"]
[ECO "E63"]
[WhiteElo "2578"]
[BlackElo "2184"]
[Annotator "ChessBase"]
[PlyCount "59"]
[EventDate "2019.12.07"]
[EventType "swiss"]
[EventCountry "BRA"]
[SourceTitle "playchess.com"]
[Source "ChessBase"]
[SourceQuality "1"]
[TimeControl "40/5400+30:1800+30"]

1. d4 {[%emt 0:00:00]} Nf6 {[%emt 0:01:43]} 2. c4 {[%emt 0:00:55]} g6 {[%emt 0:00:25]} 3. g3 {[%emt 0:00:15]} Bg7 {[%emt 0:01:11]} 4. Bg2 {[%emt 0:00:04]} O-O {[%emt 0:00:32]} 5. Nc3 {[%emt 0:00:04]} d6 {[%emt 0:00:08]} 6. Nf3 {[%emt 0:00:05]} Nc6 {[%emt 0:01:05]} 7. O-O {[%emt 0:00:08]} a6 {[%emt 0:00:33]} 8. b3 {[%emt 0:01:21]} Rb8 {[%emt 0:02:48]} 9. d5 {[%emt 0:00:28]} Na5 {[%emt 0:02:11]} 10. Bg5 {[%emt 0:00:15]} c5 {[%emt 0:08:29]} 11. dxc6 {[%emt 0:01:35]} bxc6 {[%emt 0:05:40]} 12. c5 {[%emt 0:19:14]} h6 {[%emt 0:16:39]} 13. Bd2 {[%emt 0:04:11]} d5 {[%emt 0:03:11]} 14. Bf4 {[%emt 0:03:38]} Rb4 {[%emt 0:06:13]} 15. Be5 {[%emt 0:08:38]} Nd7 {[%emt 0:12:39]} 16. Bxg7 {[%emt 0:00:22]} Kxg7 {[%emt 0:00:02]} 17. Qd2 {[%emt 0:03:20]} Rb8 {[%emt 0:07:17]} 18. e4 {[%emt 0:03:12]} Nf6 {[%emt 0:10:17]} 19. e5 {[%emt 0:05:05]} Ne4 {[%emt 0:01:09]} 20. Qd4 {[%emt 0:00:55]} Nxc3 {[%emt 0:04:50]} 21. Qxc3 {[%emt 0:00:12]} Kh7 {[%emt 0:01:47]} 22. Nd4 {[%emt 0:00:37]} Qc7 {[%emt 0:00:19]} 23. Rae1 {[%emt 0:01:00]} Nb7 {[%emt 0:04:28]} 24. f4 {[%emt 0:02:16]} f5 {[%emt 0:03:25]} 25. exf6 {[%emt 0:03:16]} exf6 {[%emt 0:00:16]} 26. Re3 {[%emt 0:01:33]} Rf7 {[%emt 0:02:47]} 27. Rfe1 {[%emt 0:01:27]} Bd7 {[%emt 0:00:49]} 28. Re7 {[%emt 0:00:22]} Kg8 {[%emt 0:01:22]} 29. Bh3 {[%emt 0:00:56]} f5 {[%emt 0:00:50]} 30. Ne6 {[%emt 0:00:23]} 1-0

[Event "III Duchamp Open 2019"]
[Site "Rio de Janeiro"]
[Date "2019.12.08"]
[Round "2.3"]
[White "Cezila Jr, Rubens"]
[Black "Cruz, Cristhian"]
[Result "0-1"]
[ECO "C11"]
[WhiteElo "2191"]
[BlackElo "2562"]
[Annotator "ChessBase"]
[PlyCount "54"]
[EventDate "2019.12.07"]
[EventType "swiss"]
[EventCountry "BRA"]
[SourceTitle "playchess.com"]
[Source "ChessBase"]
[SourceQuality "1"]
[TimeControl "40/5400+30:1800+30"]

1. e4 {[%emt 0:00:00]} e6 {[%emt 0:00:42]} 2. d4 {[%emt 0:00:00]} d5 {[%emt 0:00:04]} 3. Nc3 {[%emt 0:00:00]} Nf6 {[%emt 0:00:06]} 4. Bg5 {[%emt 0:00:00]} dxe4 {[%emt 0:00:10]} 5. Nxe4 {[%emt 0:00:09]} Be7 {[%emt 0:00:03]} 6. Bxf6 {[%emt 0:00:58]} gxf6 {[%emt 0:00:16]} 7. Nf3 {[%emt 0:01:03]} f5 {[%emt 0:00:27]} 8. Nc3 {[%emt 0:01:40]} a6 {[%emt 0:00:05]} 9. Qe2 {[%emt 0:10:37]} b5 {[%emt 0:00:31]} 10. a3 {[%emt 0:00:15]} Qd6 {[%emt 0:04:54]} 11. O-O-O {[%emt 0:07:47]} Nd7 {[%emt 0:02:33]} 12. d5 {[%emt 0:21:54]} e5 {[%emt 0:01:38]} 13. Re1 {[%emt 0:00:17]} e4 {[%emt 0:01:41]} 14. Nd4 {[%emt 0:00:04]} Nf6 {[%emt 0:02:27]} 15. Nc6 {[%emt 0:06:21]} Nxd5 {[%emt 0:03:43]} 16. Nxd5 {[%emt 0:00:15]} Qxd5 {[%emt 0:01:21]} 17. Nxe7 {[%emt 0:00:05]} Kxe7 {[%emt 0:00:05]} 18. f3 {[%emt 0:07:58]} Qa2 {[%emt 0:15:43]} 19. c3 {[%emt 0:05:15]} Be6 {[%emt 0:05:13]} 20. fxe4 {[%emt 0:00:55]} f4 {[%emt 0:00:13]} 21. Qc2 {[%emt 0:04:16]} Rhg8 {[%emt 0:04:55]} 22. g3 {[%emt 0:22:37]} fxg3 {[%emt 0:00:50]} 23. hxg3 {[%emt 0:00:05]} Rxg3 {[%emt 0:01:06]} 24. Rxh7 {[%emt 0:03:56]} Rd8 {[%emt 0:04:02]} 25. Rh2 {[%emt 0:03:51]} Bb3 {[%emt 0:02:37]} 26. Qb1 {[%emt 0:00:11]} Re3 {[%emt 0:00:19]} 27. Rhe2 {[%emt 0:00:39]} Red3 {[%emt 0:00:12]} 0-1

[Event "III Duchamp Open 2019"]
[Site "Rio de Janeiro"]
[Date "2019.12.08"]
[Round "2.4"]
[White "Hernandez Guerrero, Gilberto"]
[Black "Carraro, Denise"]
[Result "1-0"]
[ECO "C00"]
[WhiteElo "2554"]
[BlackElo "2177"]
[Annotator "ChessBase"]
[PlyCount "69"]
[EventDate "2019.12.07"]
[EventType "swiss"]
[EventCountry "BRA"]
[SourceTitle "playchess.com"]
[Source "ChessBase"]
[SourceQuality "1"]
[TimeControl "40/5400+30:1800+30"]

1. e4 {[%emt 0:00:00]} e6 {[%emt 0:04:42]} 2. d3 {[%emt 0:00:30]} c5 {[%emt 0:01:51]} 3. g3 {[%emt 0:00:40]} Nc6 {[%emt 0:00:38]} 4. Bg2 {[%emt 0:00:47]} d5 {[%emt 0:03:22]} 5. exd5 {[%emt 0:06:32]} exd5 {[%emt 0:00:05]} 6. Nc3 {[%emt 0:00:22]} Be6 {[%emt 0:01:58]} 7. Nge2 {[%emt 0:01:23]} Qd7 {[%emt 0:06:39]} 8. Nf4 {[%emt 0:10:34]} Nge7 {[%emt 0:09:32]} 9. O-O {[%emt 0:03:39]} O-O-O {[%emt 0:17:46]} 10. h3 {[%emt 0:07:13]} h6 {[%emt 0:16:16]} 11. a3 {[%emt 0:01:15]} g5 {[%emt 0:00:36]} 12. Nxe6 {[%emt 0:00:41]} fxe6 {[%emt 0:00:02]} 13. b4 {[%emt 0:03:51]} Nf5 {[%emt 0:04:32]} 14. b5 {[%emt 0:06:18]} Nce7 {[%emt 0:02:22]} 15. Rb1 {[%emt 0:03:33]} Ng6 {[%emt 0:10:37]} 16. a4 {[%emt 0:05:16]} Rg8 {[%emt 0:03:01]} 17. Kh1 {[%emt 0:15:39]} Bd6 {[%emt 0:00:21]} 18. Ne2 {[%emt 0:00:31]} Bb8 {[%emt 0:04:11]} 19. d4 {[%emt 0:03:04]} c4 {[%emt 0:06:25]} 20. a5 {[%emt 0:03:55]} Qd6 {[%emt 0:00:37]} 21. Bd2 {[%emt 0:00:24]} h5 {[%emt 0:01:40]} 22. Bxg5 {[%emt 0:04:55]} Rdf8 {[%emt 0:00:59]} 23. b6 {[%emt 0:01:43]} a6 {[%emt 0:00:06]} 24. Bd2 {[%emt 0:05:50]} Rf7 {[%emt 0:00:03]} 25. Nf4 {[%emt 0:04:59]} h4 {[%emt 0:02:14]} 26. Bb4 {[%emt 0:01:50]} Qd8 {[%emt 0:00:29]} 27. Nxg6 {[%emt 0:01:48]} Rxg6 {[%emt 0:01:06]} 28. g4 {[%emt 0:00:10]} Qg5 {[%emt 0:00:58]} 29. Bd2 {[%emt 0:00:32]} Bf4 30. Bxf4 {[%emt 0:00:36]} Qxf4 {[%emt 0:00:03]} 31. c3 {[%emt 0:01:08]} Rfg7 {[%emt 0:00:39]} 32. Qe2 {[%emt 0:00:50]} Nh6 {[%emt 0:01:14]} 33. Rbe1 {[%emt 0:00:38]} Rf6 {[%emt 0:00:45]} 34. Bxd5 {[%emt 0:00:27]} Qd6 {[%emt 0:00:34]} 35. Qxc4+ {[%emt 0:00:38]} 1-0

[Event "III Duchamp Open 2019"]
[Site "Rio de Janeiro"]
[Date "2019.12.08"]
[Round "2.5"]
[White "Diamant, Andre"]
[Black "Rocha, Vitor Firmo de Souza"]
[Result "1-0"]
[ECO "A16"]
[WhiteElo "2533"]
[BlackElo "2169"]
[Annotator "ChessBase"]
[PlyCount "77"]
[EventDate "2019.12.07"]
[EventType "swiss"]
[EventCountry "BRA"]
[SourceTitle "playchess.com"]
[Source "ChessBase"]
[SourceQuality "1"]
[TimeControl "40/5400+30:1800+30"]

1. c4 {[%emt 0:00:00]} Nf6 {[%emt 0:00:33]} 2. Nc3 {[%emt 0:00:00]} Nc6 {[%emt 0:00:51]} 3. Nf3 {[%emt 0:02:25]} d6 {[%emt 0:00:35]} 4. d4 {[%emt 0:01:24]} e5 {[%emt 0:00:11]} 5. d5 {[%emt 0:03:47]} Ne7 {[%emt 0:01:49]} 6. e4 {[%emt 0:02:11]} Ng6 {[%emt 0:01:23]} 7. h4 {[%emt 0:03:43]} h5 {[%emt 0:01:44]} 8. Ng5 {[%emt 0:00:36]} Be7 {[%emt 0:01:11]} 9. g3 {[%emt 0:01:59]} a5 {[%emt 0:08:35]} 10. Be2 {[%emt 0:02:17]} Bd7 {[%emt 0:09:01]} 11. Bd2 {[%emt 0:04:30]} Qc8 {[%emt 0:08:38]} 12. Rc1 {[%emt 0:06:12]} Nf8 {[%emt 0:05:44]} 13. Kf1 {[%emt 0:01:25]} N8h7 {[%emt 0:12:14]} 14. Kg2 {[%emt 0:00:36]} g6 {[%emt 0:03:15]} 15. f3 {[%emt 0:05:06]} c5 {[%emt 0:06:09]} 16. dxc6 {[%emt 0:02:54]} bxc6 {[%emt 0:00:12]} 17. c5 {[%emt 0:00:22]} d5 {[%emt 0:02:04]} 18. Nxh7 {[%emt 0:04:25]} Rxh7 {[%emt 0:00:22]} 19. exd5 {[%emt 0:01:43]} Nxd5 {[%emt 0:01:22]} 20. Bc4 {[%emt 0:07:09]} Be6 {[%emt 0:02:19]} 21. Ne4 {[%emt 0:02:25]} f5 {[%emt 0:01:08]} 22. Ng5 {[%emt 0:03:48]} Bxg5 {[%emt 0:00:31]} 23. Bxg5 {[%emt 0:00:14]} f4 {[%emt 0:01:35]} 24. Re1 {[%emt 0:04:46]} Ne3+ {[%emt 0:06:39]} 25. Rxe3 {[%emt 0:00:09]} fxe3 {[%emt 0:00:08]} 26. Qd6 {[%emt 0:00:11]} Bxc4 {[%emt 0:08:57]} 27. Qxg6+ {[%emt 0:02:13]} Rf7 {[%emt 0:01:10]} 28. Rxc4 {[%emt 0:00:02]} Rb8 {[%emt 0:02:32]} 29. b3 {[%emt 0:00:51]} Rb4 {[%emt 0:03:58]} 30. Rc3 {[%emt 0:00:48]} Rd4 {[%emt 0:04:11]} 31. Bxe3 {[%emt 0:04:13]} Rd1 {[%emt 0:01:08]} 32. Bh6 {[%emt 0:05:15]} Qf5 {[%emt 0:02:11]} 33. Qxc6+ {[%emt 0:01:20]} Ke7 {[%emt 0:00:57]} 34. Qb7+ {[%emt 0:04:34]} Ke8 {[%emt 0:00:29]} 35. Qb8+ {[%emt 0:10:05]} Ke7 {[%emt 0:00:34]} 36. Bg5+ {[%emt 0:00:42]} Rf6 {[%emt 0:00:54]} 37. Qh8 {[%emt 0:01:59]} Qb1 {[%emt 0:00:24]} 38. Qxf6+ {[%emt 0:00:32]} Kd7 {[%emt 0:00:19]} 39. c6+ {[%emt 0:00:19]} 1-0

[Event "III Duchamp Open 2019"]
[Site "Rio de Janeiro"]
[Date "2019.12.08"]
[Round "2.6"]
[White "Zuriel, Marisa"]
[Black "Vazquez, Guillermo"]
[Result "0-1"]
[ECO "B47"]
[WhiteElo "2178"]
[BlackElo "2506"]
[Annotator "ChessBase"]
[PlyCount "62"]
[EventDate "2019.12.07"]
[EventType "swiss"]
[EventCountry "BRA"]
[SourceTitle "playchess.com"]
[Source "ChessBase"]
[SourceQuality "1"]
[TimeControl "40/5400+30:1800+30"]

1. e4 {[%emt 0:05:12]} c5 {[%emt 0:00:46]} 2. Nf3 {[%emt 0:00:09]} Nc6 {[%emt 0:00:11]} 3. d4 {[%emt 0:00:56]} cxd4 {[%emt 0:00:10]} 4. Nxd4 {[%emt 0:00:08]} e6 {[%emt 0:01:04]} 5. Nc3 {[%emt 0:01:03]} Qc7 {[%emt 0:00:15]} 6. f4 {[%emt 0:04:32]} Nxd4 {[%emt 0:01:54]} 7. Qxd4 {[%emt 0:00:09]} b6 {[%emt 0:00:07]} 8. Be3 {[%emt 0:06:08]} Bb7 9. O-O-O {[%emt 0:02:45]} Nf6 {[%emt 0:02:58]} 10. Be2 {[%emt 0:04:38]} Bc5 {[%emt 0:08:09]} 11. Qd3 {[%emt 0:00:27]} Ba6 {[%emt 0:00:25]} 12. Qd2 {[%emt 0:05:16]} Bxe3 {[%emt 0:02:24]} 13. Qxe3 {[%emt 0:00:05]} Bxe2 {[%emt 0:00:12]} 14. Nxe2 {[%emt 0:00:08]} Rc8 {[%emt 0:03:33]} 15. Rd2 {[%emt 0:03:39]} b5 {[%emt 0:11:12]} 16. Kb1 {[%emt 0:06:20]} O-O {[%emt 0:06:03]} 17. Rhd1 {[%emt 0:05:29]} d5 {[%emt 0:04:07]} 18. exd5 {[%emt 0:00:57]} Nxd5 {[%emt 0:02:02]} 19. Qf3 {[%emt 0:00:17]} Qb6 {[%emt 0:04:49]} 20. Rd4 {[%emt 0:10:46]} b4 {[%emt 0:04:05]} 21. Qd3 {[%emt 0:05:23]} a5 {[%emt 0:03:17]} 22. f5 {[%emt 0:12:42]} a4 {[%emt 0:02:37]} 23. fxe6 {[%emt 0:00:44]} fxe6 {[%emt 0:00:10]} 24. Rh4 {[%emt 0:00:15]} g6 {[%emt 0:05:16]} 25. Rd4 {[%emt 0:17:57]} Rf2 {[%emt 0:01:44]} 26. Ka1 {[%emt 0:02:34]} Qc6 {[%emt 0:04:26]} 27. Kb1 {[%emt 0:02:14]} a3 {[%emt 0:01:38]} 28. Re4 {[%emt 0:02:02]} axb2 {[%emt 0:01:39]} 29. Kxb2 {[%emt 0:00:11]} Rxg2 {[%emt 0:01:25]} 30. Nd4 {[%emt 0:01:11]} Qc3+ {[%emt 0:00:22]} 31. Kb1 {[%emt 0:00:07]} Qxd3 {[%emt 0:00:16]} 0-1

[Event "III Duchamp Open 2019"]
[Site "Rio de Janeiro"]
[Date "2019.12.08"]
[Round "2.7"]
[White "Di Berardino, Diego Rafael"]
[Black "De Carvalho, Jose Jorge"]
[Result "1-0"]
[ECO "D37"]
[WhiteElo "2489"]
[BlackElo "2149"]
[Annotator "ChessBase"]
[PlyCount "71"]
[EventDate "2019.12.07"]
[EventType "swiss"]
[EventCountry "BRA"]
[SourceTitle "playchess.com"]
[Source "ChessBase"]
[SourceQuality "1"]
[TimeControl "40/5400+30:1800+30"]

1. d4 {[%emt 0:01:59]} d5 {[%emt 0:00:00]} 2. c4 {[%emt 0:00:09]} e6 {[%emt 0:00:11]} 3. Nc3 {[%emt 0:01:15]} Nf6 {[%emt 0:00:19]} 4. Nf3 {[%emt 0:00:56]} Be7 {[%emt 0:00:32]} 5. Bf4 {[%emt 0:00:07]} O-O {[%emt 0:00:47]} 6. e3 {[%emt 0:00:03]} b6 {[%emt 0:00:24]} 7. Bd3 {[%emt 0:00:19]} Bb7 {[%emt 0:01:56]} 8. cxd5 {[%emt 0:01:39]} Nxd5 {[%emt 0:01:44]} 9. Nxd5 {[%emt 0:04:28]} exd5 {[%emt 0:00:26]} 10. O-O {[%emt 0:18:53]} c5 {[%emt 0:07:21]} 11. dxc5 {[%emt 0:03:00]} bxc5 {[%emt 0:00:22]} 12. Qc2 {[%emt 0:13:22]} h6 {[%emt 0:01:15]} 13. Rfd1 {[%emt 0:00:08]} Nc6 {[%emt 0:21:51]} 14. a3 {[%emt 0:01:18]} Qb6 {[%emt 0:01:46]} 15. Rac1 {[%emt 0:10:37]} Rad8 {[%emt 0:07:13]} 16. Bh7+ {[%emt 0:04:20]} Kh8 {[%emt 0:00:28]} 17. Bf5 {[%emt 0:00:16]} Rfe8 {[%emt 0:15:32]} 18. Ne5 {[%emt 0:22:49]} Nxe5 {[%emt 0:00:34]} 19. Bxe5 {[%emt 0:00:03]} Bf8 {[%emt 0:00:22]} 20. Bf4 {[%emt 0:02:17]} Kg8 {[%emt 0:07:10]} 21. Bg4 {[%emt 0:04:47]} d4 {[%emt 0:09:36]} 22. exd4 {[%emt 0:03:45]} Re4 {[%emt 0:08:25]} 23. dxc5 {[%emt 0:00:05]} Rxd1+ {[%emt 0:00:13]} 24. Qxd1 {[%emt 0:00:03]} Bxc5 {[%emt 0:01:53]} 25. Bg3 {[%emt 0:02:01]} Qxb2 {[%emt 0:05:12]} 26. Rb1 {[%emt 0:03:24]} Qc3 {[%emt 0:00:03]} 27. Bf5 {[%emt 0:00:50]} Rd4 {[%emt 0:00:43]} 28. Qe2 {[%emt 0:00:11]} g6 {[%emt 0:01:35]} 29. Bxg6 fxg6 {[%emt 0:01:14]} 30. Qe8+ {[%emt 0:01:16]} Bf8 {[%emt 0:00:26]} 31. Qxg6+ {[%emt 0:00:25]} Bg7 {[%emt 0:00:28]} 32. Be5 {[%emt 0:00:22]} Rg4 {[%emt 0:03:07]} 33. Qe6+ {[%emt 0:00:16]} Kh7 {[%emt 0:00:49]} 34. Bxc3 {[%emt 0:00:17]} Rxg2+ {[%emt 0:00:37]} 35. Kf1 {[%emt 0:00:03]} Rg6 {[%emt 0:00:51]} 36. Rxb7 {[%emt 0:00:21]} 1-0